fUST/lending_fUST_20260425
["ID","MTS","AMOUNT","RATE_DAILY","PERIOD"]
[421105320,1777050646246,-500.0,0.00019178,2]
[421105321,1777050646256,-733.61,0.00019178,2]
[421105322,1777050646266,-500.0,0.00019178,2]
[421105323,1777050646276,-500.0,0.00019178,2]
[421105324,1777050646286,-505.86,0.00019178,2]
[421105325,1777050646295,-500.0,0.00019178,2]
[421105326,1777050646306,-500.0,0.00019178,2]
[421105327,1777050646316,-500.0,0.00019178,2]
[421105328,1777050646325,-500.0,0.00019178,2]
[421105329,1777050646335,-500.0,0.00019178,2]
[421105330,1777050646344,-512.22,0.00019178,2]
[421105331,1777050646354,-500.0,0.00019178,2]
[421105332,1777050646363,-1711.3,0.00019178,2]
[421105333,1777050646372,-500.0,0.00019178,2]
[421105334,1777050646382,-765.55,0.00019178,2]
[421105335,1777050646391,-712.43,0.00019178,2]
[421105336,1777050646401,-728.27,0.00019178,2]
[421105337,1777050646411,-3117.0,0.00019178,2]
[421105338,1777050646420,-1040.87,0.00019178,2]
[421105339,1777050646429,-678.62,0.00019178,2]
[421105340,1777050646439,-1000.0,0.00019178,2]
[421105341,1777050646448,-500.0,0.00019178,2]
[421105342,1777050646457,-500.0,0.00019178,2]
[421105343,1777050646466,-2908.17,0.00019178,2]
[421105344,1777050646475,-500.0,0.00019178,2]
[421105345,1777050646486,-500.0,0.00019178,2]
[421105346,1777050646495,-1100.04,0.00019178,2]
[421105347,1777050646504,-460.130646,0.00019178,2]
[421105348,1777050646514,-500.0,0.00019178,2]
[421105349,1777050646523,-500.0,0.00019178,2]
[421105350,1777050646533,-500.0,0.00019178,2]
[421105351,1777050646542,-500.0,0.00019178,2]
[421105352,1777050646552,-500.0,0.00019178,2]
[421105353,1777050646562,-770.79,0.00019178,2]
[421105354,1777050646571,-500.0,0.00019178,2]
[421105355,1777050646580,-346.98941507,0.00019178,2]
[421105356,1777050646590,-500.0,0.00019178,2]
[421105357,1777050646599,-600.0,0.00019178,2]
[421105358,1777050646609,-1569.81,0.00019178,2]
[421105359,1777050646618,-500.0,0.00019178,2]
[421105360,1777050646627,-3202.94,0.00019178,2]
[421105361,1777050646636,-500.0,0.00019178,2]
[421105362,1777050646645,-500.0,0.00019178,2]
[421105363,1777050646655,-286.50482511,0.00019178,2]
[421105364,1777050646669,-866.2,0.00019178,2]
[421105365,1777050646679,-8545.4,0.00019178,2]
[421105366,1777050646689,-500.0,0.00019178,2]
[421105367,1777050646699,-744.87,0.00019178,2]
[421105368,1777050646708,-406.93226331,0.00019178,2]
[421105369,1777050646816,-500.0,0.00019178,2]
[421105370,1777050646825,-1106.93,0.00019178,2]
[421105371,1777050646835,-839.73,0.00019178,2]
[421105372,1777050646844,-12053.63,0.00019178,2]
[421105373,1777050646854,-783.36,0.00019178,2]
[421105374,1777050646863,-1182.72,0.00019178,2]
[421105375,1777050646873,-837.93,0.00019178,2]
[421105376,1777050646882,-4603.09,0.00019178,2]
[421105377,1777050646891,-1792.75,0.00019178,2]
[421105378,1777050646900,-14394.24,0.00019178,2]
[421105379,1777050646911,-500.0,0.00019178,2]
[421105380,1777050646920,-1049.09,0.00019178,2]
[421105381,1777050646930,-1865.49,0.00019178,2]
[421105382,1777050646939,-2765.88,0.00019178,2]
[421105383,1777050646948,-516.92,0.00019178,2]
[421105384,1777050646958,-500.0,0.00019178,2]
[421105385,1777050646968,-4051.98,0.00019178,2]
[421105386,1777050646978,-500.0,0.00019178,2]
[421105387,1777050646987,-518.89,0.00019178,2]
[421105388,1777050646996,-500.0,0.00019178,2]
[421105389,1777050647006,-1789.86,0.00019178,2]
[421105390,1777050647015,-500.0,0.00019178,2]
[421105391,1777050647024,-500.0,0.00019178,2]
[421105392,1777050647034,-500.0,0.00019178,2]
[421105393,1777050647043,-798.93,0.00019178,2]
[421105394,1777050647052,-1158.33,0.00019178,2]
[421105395,1777050647062,-500.0,0.00019178,2]
[421105396,1777050647072,-500.0,0.00019178,2]
[421105397,1777050647082,-1462.78,0.00019178,2]
[421105398,1777050647091,-500.0,0.00019178,2]
[421105399,1777050647100,-1438.64,0.00019178,2]
[421105400,1777050647109,-1151.36,0.00019178,2]
[421105401,1777050647118,-2929.8,0.00019178,2]
[421105402,1777050647128,-500.0,0.00019178,2]
[421105403,1777050647137,-703.64,0.00019178,2]
[421105404,1777050647146,-566.66,0.00019178,2]
[421105405,1777050647155,-500.0,0.00019178,2]
[421105406,1777050647164,-500.0,0.00019178,2]
[421105407,1777050647174,-500.0,0.00019178,2]
[421105408,1777050647183,-500.0,0.00019178,2]
[421105409,1777050647193,-1117.16,0.00019178,2]
[421105410,1777050647202,-500.0,0.00019178,2]
[421105411,1777050647211,-570.11,0.00019178,2]
[421105412,1777050647220,-500.0,0.00019178,2]
[421105413,1777050647229,-1000.0,0.00019178,2]
[421105414,1777050647239,-1144.45,0.00019178,2]
[421105415,1777050647248,-500.0,0.00019178,2]
[421105416,1777050647258,-500.0,0.00019178,2]
[421105417,1777050647267,-500.0,0.00019178,2]
[421105418,1777050647276,-8896.65,0.00019178,2]
[421105419,1777050647286,-500.0,0.00019178,2]
[421105420,1777050647295,-961.54,0.00019178,2]
[421105421,1777050647304,-500.0,0.00019178,2]
[421105422,1777050647314,-1855.88,0.00019178,2]
[421105423,1777050647323,-500.0,0.00019178,2]
[421105424,1777050647332,-4577.28,0.00019178,2]
[421105425,1777050647342,-500.0,0.00019178,2]
[421105426,1777050647351,-6959.27,0.00019178,2]
[421105427,1777050647360,-500.0,0.00019178,2]
[421105428,1777050647370,-500.0,0.00019178,2]
[421105429,1777050647379,-2451.12,0.00019178,2]
[421105430,1777050647388,-1939.63,0.00019178,2]
[421105431,1777050647398,-5909.2,0.00019178,2]
[421105432,1777050647407,-2047.81,0.00019178,2]
[421105433,1777050647416,-527.59,0.00019178,2]
[421105434,1777050647426,-500.0,0.00019178,2]
[421105435,1777050647435,-724.35,0.00019178,2]
[421105436,1777050647444,-680.04,0.00019178,2]
[421105437,1777050647454,-8825.14,0.00019178,2]
[421105438,1777050647463,-1571.89,0.00019178,2]
[421105439,1777050647473,-1360.24,0.00019178,2]
[421105440,1777050647483,-500.0,0.00019178,2]
[421105441,1777050647492,-212.8808357,0.00019178,2]
[421105442,1777050647502,-6115.6,0.00019178,2]
[421105443,1777050647511,-722.82,0.00019178,2]
[421105444,1777050647521,-2707.91,0.00019178,2]
[421105445,1777050647530,-2694.68,0.00019178,2]
[421105446,1777050647540,-2892.85,0.00019178,2]
[421105447,1777050647549,-958.03,0.00019178,2]
[421105448,1777050647560,-500.0,0.00019178,2]
[421105449,1777050647569,-925.89,0.00019178,2]
[421105450,1777050647578,-500.0,0.00019178,2]
[421105451,1777050647588,-1588.46,0.00019178,2]
[421105452,1777050647598,-500.0,0.00019178,2]
[421105453,1777050647607,-500.0,0.00019178,2]
[421105454,1777050647617,-500.0,0.00019178,2]
[421105455,1777050647626,-500.0,0.00019178,2]
[421105456,1777050647635,-5621.63,0.00019178,2]
[421105457,1777050647645,-500.0,0.00019178,2]
[421105458,1777050647656,-168.98969279,0.00019178,2]
[421105459,1777050647666,-500.0,0.00019178,2]
[421105460,1777050647675,-500.0,0.00019178,2]
[421105461,1777050647684,-2229.05,0.00019178,2]
[421105462,1777050647710,-561.98,0.00019178,2]
[421105463,1777050647719,-5283.32,0.00019178,2]
[421105464,1777050647728,-500.0,0.00019178,2]
[421105465,1777050647738,-5666.25,0.00019178,2]
[421105466,1777050647748,-500.0,0.00019178,2]
[421105467,1777050647757,-2037.12,0.00019178,2]
[421105468,1777050647767,-500.0,0.00019178,2]
[421105469,1777050647776,-1755.88,0.00019178,2]
[421105470,1777050647785,-4527.83,0.00019178,2]
[421105471,1777050647794,-500.0,0.00019178,2]
[421105472,1777050647803,-1141.08,0.00019178,2]
[421105473,1777050647812,-1906.73,0.00019178,2]
[421105474,1777050647821,-500.0,0.00019178,2]
[421105475,1777050647830,-500.0,0.00019178,2]
[421105476,1777050647839,-837.54,0.00019178,2]
[421105477,1777050647848,-500.0,0.00019178,2]
[421105478,1777050647857,-998.01,0.00019178,2]
[421105479,1777050647866,-11486.98,0.00019178,2]
[421105480,1777050647876,-500.0,0.00019178,2]
[421105481,1777050647885,-35129.88,0.00019178,2]
[421105482,1777050647894,-500.0,0.00019178,2]
[421105483,1777050647904,-1323.34,0.00019178,2]
[421105484,1777050647914,-3208.85,0.00019178,2]
[421105485,1777050647924,-1920.51,0.00019178,2]
[421105486,1777050647933,-2511.72,0.00019178,2]
[421105487,1777050647942,-500.0,0.00019178,2]
[421105488,1777050647952,-5865.92,0.00019178,2]
[421105489,1777050647963,-686.32,0.00019178,2]
[421105490,1777050647972,-4868.64,0.00019178,2]
[421105491,1777050647982,-12000.03,0.00019178,2]
[421105492,1777050647991,-590.9,0.00019178,2]
[421105493,1777050648000,-2507.45,0.00019178,2]
[421105494,1777050648010,-866.2,0.00019178,2]
[421105495,1777050648020,-500.0,0.00019178,2]
[421105496,1777050648029,-500.0,0.00019178,2]
[421105497,1777050648038,-500.0,0.00019178,2]
[421105498,1777050648048,-13307.67,0.00019178,2]
[421105499,1777050648057,-756.0,0.00019178,2]
[421105500,1777050648067,-184.37660698,0.00019178,3]
[421105501,1777050648076,-743.2,0.00019352,2]
[421105502,1777050648086,-170.60035921,0.00019357,25]
[421105503,1777050648095,-4217.98,0.00019452,2]
[421105504,1777050648104,-1418.5818,0.00019452,2]
[421105505,1777050648113,-500.0,0.00019452,2]
[421105506,1777050648122,-500.0,0.00019452,2]
[421105507,1777050648131,-500.0,0.00019452,2]
[421105508,1777050648140,-1099.12,0.00019452,2]
[421105509,1777050648150,-500.0,0.00019452,2]
[421105510,1777050648159,-340.1954126,0.00019452,2]
[421105511,1777050648168,-1263.72,0.00019452,2]
[421105512,1777050648177,-888.35,0.00019452,2]
[421105513,1777050648187,-805.61,0.00019452,2]
[421105514,1777050648196,-311.10640232,0.00019452,2]
[421105515,1777050648205,-1071.22,0.00019452,2]
[421105516,1777050648215,-1256.96,0.00019452,2]
[421105517,1777050648225,-601.95,0.00019452,2]
[421105518,1777050648234,-500.0,0.00019452,2]
[421105519,1777050648243,-2538.85,0.00019452,2]
[421105520,1777050648253,-500.0,0.00019452,2]
[421105521,1777050648262,-1252.18,0.00019452,2]
[421105522,1777050648271,-500.0,0.00019452,2]
[421105523,1777050648280,-1443.62,0.00019452,2]
[421105524,1777050648289,-500.0,0.00019452,2]
[421105525,1777050648299,-500.0,0.00019452,2]
[421105526,1777050648308,-500.0,0.00019452,2]
[421105527,1777050648318,-518.68120308,0.00019452,2]
[421105528,1777050648328,-522.83,0.00019452,2]
[421105529,1777050648337,-500.0,0.00019452,2]
[421105530,1777050648347,-500.0,0.00019452,2]
[421105531,1777050648356,-500.0,0.00019452,2]
[421105532,1777050648365,-500.0,0.00019452,2]
[421105533,1777050648375,-500.0,0.00019452,2]
[421105534,1777050648384,-551.62,0.00019452,2]
[421105535,1777050648393,-500.0,0.00019452,2]
[421105536,1777050648403,-500.0,0.00019452,2]
[421105537,1777050648412,-843.62,0.00019452,2]
[421105538,1777050648422,-907.09,0.00019452,2]
[421105539,1777050648431,-782.33,0.00019452,2]
[421105540,1777050648441,-1910.61,0.00019452,2]
[421105541,1777050648450,-1105.73,0.00019452,2]
[421105542,1777050648459,-500.0,0.00019452,2]
[421105543,1777050648469,-500.0,0.00019452,2]
[421105544,1777050648478,-500.0,0.00019452,2]
[421105545,1777050648487,-1643.48,0.00019452,2]
[421105546,1777050648496,-500.0,0.00019452,2]
[421105547,1777050648505,-1751.53,0.00019452,2]
[421105548,1777050648515,-2517.28,0.00019452,2]
[421105549,1777050648524,-500.0,0.00019452,2]
[421105550,1777050648533,-500.0,0.00019452,2]
[421105551,1777050648543,-500.0,0.00019452,2]
[421105552,1777050648552,-500.0,0.00019452,2]
[421105553,1777050648561,-500.0,0.00019452,2]
[421105554,1777050648570,-500.0,0.00019452,2]
[421105555,1777050648579,-500.0,0.00019452,2]
[421105556,1777050648588,-500.0,0.00019452,2]
[421105557,1777050648598,-500.0,0.00019452,2]
[421105558,1777050648607,-1324.94,0.00019452,2]
[421105559,1777050648617,-1171.87,0.00019452,2]
[421105560,1777050648626,-845.33,0.00019452,2]
[421105561,1777050648635,-2336.58,0.00019452,2]
[421105562,1777050648644,-1167.62,0.00019452,2]
[421105563,1777050648654,-500.0,0.00019452,2]
[421105564,1777050648663,-616.56,0.00019452,2]
[421105565,1777050648672,-500.0,0.00019452,2]
[421105566,1777050648680,-500.0,0.00019452,2]
[421105567,1777050648690,-939.48,0.00019452,2]
[421105568,1777050648699,-1260.99,0.00019452,2]
[421105569,1777050648708,-500.0,0.00019452,2]
[421105570,1777050648717,-500.0,0.00019452,2]
[421105571,1777050648726,-550.1,0.00019452,2]
[421105572,1777050648735,-490.51692416,0.00019452,2]
[421105573,1777050648745,-4745.98,0.00019452,2]
[421105574,1777050648754,-500.0,0.00019452,2]
[421105575,1777050648763,-500.0,0.00019452,2]
[421105576,1777050648772,-500.0,0.00019452,2]
[421105577,1777050648781,-335.48769591,0.00019452,2]
[421105578,1777050648791,-620.13,0.00019452,2]
[421105579,1777050648800,-500.0,0.00019452,2]
[421105580,1777050648809,-500.0,0.00019452,2]
[421105581,1777050648818,-541.92578451,0.00019452,2]
[421105582,1777050648827,-500.0,0.00019452,2]
[421105583,1777050648837,-500.0,0.00019452,2]
[421105584,1777050648845,-500.0,0.00019452,2]
[421105585,1777050648854,-500.0,0.00019452,2]
[421105586,1777050648863,-1808.97,0.00019452,2]
[421105587,1777050648872,-1588.08,0.00019452,2]
[421105588,1777050648882,-777.03,0.00019452,2]
[421105589,1777050648892,-877.3,0.00019452,2]
[421105590,1777050648901,-500.0,0.00019452,2]
[421105591,1777050648911,-1535.17,0.00019452,2]
[421105592,1777050648919,-500.0,0.00019452,2]
[421105593,1777050648929,-1023.46,0.00019452,2]
[421105594,1777050648938,-500.0,0.00019452,2]
[421105595,1777050648947,-521.11,0.00019452,2]
[421105596,1777050648957,-500.0,0.00019452,2]
[421105597,1777050648967,-500.0,0.00019452,2]
[421105598,1777050648978,-500.0,0.00019452,2]
[421105599,1777050648988,-500.0,0.00019452,2]
[421105600,1777050648999,-733.61,0.00019452,2]
[421105601,1777050649010,-500.0,0.00019452,2]
[421105602,1777050649020,-500.0,0.00019452,2]
[421105603,1777050649029,-505.86,0.00019452,2]
[421105604,1777050649038,-500.0,0.00019452,2]
[421105605,1777050649047,-500.0,0.00019452,2]
[421105606,1777050649057,-562.22835237,0.00019452,2]
[421105607,1777050649066,-500.0,0.00019452,2]
[421105608,1777050649075,-500.0,0.00019452,2]
[421105609,1777050649084,-512.22,0.00019452,2]
[421105610,1777050649094,-500.0,0.00019452,2]
[421105611,1777050649103,-1711.3,0.00019452,2]
[421105612,1777050649114,-500.0,0.00019452,2]
[421105613,1777050649123,-765.55,0.00019452,2]
[421105614,1777050649132,-712.43,0.00019452,2]
[421105615,1777050649142,-728.27,0.00019452,2]
[421105616,1777050649151,-3117.0,0.00019452,2]
[421105617,1777050649160,-1040.87,0.00019452,2]
[421105618,1777050649170,-678.62,0.00019452,2]
[421105619,1777050649179,-1000.0,0.00019452,2]
[421105620,1777050649190,-500.0,0.00019452,2]
[421105621,1777050649199,-500.0,0.00019452,2]
[421105622,1777050649208,-2908.17,0.00019452,2]
[421105623,1777050649217,-500.0,0.00019452,2]
[421105624,1777050649227,-500.0,0.00019452,2]
[421105625,1777050649236,-1100.04,0.00019452,2]
[421105626,1777050649246,-500.0,0.00019452,2]
[421105627,1777050649255,-500.0,0.00019452,2]
[421105628,1777050649265,-500.0,0.00019452,2]
[421105629,1777050649274,-500.0,0.00019452,2]
[421105630,1777050649284,-500.0,0.00019452,2]
[421105631,1777050649293,-770.79,0.00019452,2]
[421105632,1777050649303,-500.0,0.00019452,2]
[421105633,1777050649312,-364.04274419,0.00019452,2]
[421105634,1777050649322,-1569.81,0.00019452,2]
[421105635,1777050649331,-500.0,0.00019452,2]
[421105636,1777050649341,-3202.94,0.00019452,2]
[421105637,1777050649350,-500.0,0.00019452,2]
[421105638,1777050649359,-500.0,0.00019452,2]
[421105639,1777050649368,-866.2,0.00019452,2]
[421105640,1777050649377,-8545.4,0.00019452,2]
[421105641,1777050649387,-744.87,0.00019452,2]
[421105642,1777050649396,-500.0,0.00019452,2]
[421105643,1777050649405,-500.0,0.00019452,2]
[421105644,1777050649414,-1106.93,0.00019452,2]
[421105645,1777050649424,-839.73,0.00019452,2]
[421105646,1777050649434,-12053.63,0.00019452,2]
[421105647,1777050649443,-783.36,0.00019452,2]
[421105648,1777050649452,-1182.72,0.00019452,2]
[421105649,1777050649462,-837.93,0.00019452,2]
[421105650,1777050649471,-4603.09,0.00019452,2]
[421105651,1777050649481,-1792.75,0.00019452,2]
[421105652,1777050649490,-14394.24,0.00019452,2]
[421105653,1777050649500,-500.0,0.00019452,2]
[421105654,1777050649510,-1049.09,0.00019452,2]
[421105655,1777050649520,-1865.49,0.00019452,2]
[421105656,1777050649530,-2765.88,0.00019452,2]
[421105657,1777050649539,-516.92,0.00019452,2]
[421105658,1777050649548,-500.0,0.00019452,2]
[421105659,1777050649558,-4051.98,0.00019452,2]
[421105660,1777050649567,-500.0,0.00019452,2]
[421105661,1777050649577,-518.89,0.00019452,2]
[421105662,1777050649587,-500.0,0.00019452,2]
[421105663,1777050649596,-1789.86,0.00019452,2]
[421105664,1777050649605,-500.0,0.00019452,2]
[421105665,1777050649614,-500.0,0.00019452,2]
[421105666,1777050649623,-500.0,0.00019452,2]
[421105667,1777050649632,-798.93,0.00019452,2]
[421105668,1777050649642,-1158.33,0.00019452,2]
[421105669,1777050649651,-500.0,0.00019452,2]
[421105670,1777050649661,-500.0,0.00019452,2]
[421105671,1777050649670,-1462.78,0.00019452,2]
[421105672,1777050649679,-500.0,0.00019452,2]
[421105673,1777050649688,-1438.64,0.00019452,2]
[421105674,1777050649697,-1151.36,0.00019452,2]
[421105675,1777050649706,-2929.8,0.00019452,2]
[421105676,1777050649715,-500.0,0.00019452,2]
[421105677,1777050649724,-703.64,0.00019452,2]
[421105678,1777050649734,-566.66,0.00019452,2]
[421105679,1777050649743,-500.0,0.00019452,2]
[421105680,1777050649752,-500.0,0.00019452,2]
[421105681,1777050649761,-500.0,0.00019452,2]
[421105682,1777050649771,-500.0,0.00019452,2]
[421105683,1777050649781,-1117.16,0.00019452,2]
[421105684,1777050649792,-262.58474072,0.00019452,2]
[421105685,1777050649803,-570.11,0.00019452,2]
[421105686,1777050649812,-500.0,0.00019452,2]
[421105687,1777050649822,-1000.0,0.00019452,2]
[421105688,1777050649832,-1144.45,0.00019452,2]
[421105689,1777050649842,-415.33123484,0.00019452,2]
[421105690,1777050649852,-500.0,0.00019452,2]
[421105691,1777050649861,-196.63688916,0.00019452,2]
[421105692,1777050649871,-8896.65,0.00019452,2]
[421105693,1777050649880,-500.0,0.00019452,2]
[421105694,1777050649890,-961.54,0.00019452,2]
[421105695,1777050649899,-500.0,0.00019452,2]
[421105696,1777050649908,-1855.88,0.00019452,2]
[421105697,1777050649917,-500.0,0.00019452,2]
[421105698,1777050649927,-4577.28,0.00019452,2]
[421105699,1777050649936,-500.0,0.00019452,2]
[421105700,1777050649945,-6959.27,0.00019452,2]
[421105701,1777050649954,-500.0,0.00019452,2]
[421105702,1777050649964,-500.0,0.00019452,2]
[421105703,1777050649974,-2451.12,0.00019452,2]
[421105704,1777050649983,-1939.63,0.00019452,2]
[421105705,1777050649993,-5909.2,0.00019452,2]
[421105706,1777050650002,-2047.81,0.00019452,2]
[421105707,1777050650012,-527.59,0.00019452,2]
[421105708,1777050650021,-500.0,0.00019452,2]
[421105709,1777050650031,-724.35,0.00019452,2]
[421105710,1777050650040,-680.04,0.00019452,2]
[421105711,1777050650049,-8825.14,0.00019452,2]
[421105712,1777050650059,-1571.89,0.00019452,2]
[421105713,1777050650068,-1360.24,0.00019452,2]
[421105714,1777050650077,-500.0,0.00019452,2]
[421105715,1777050650086,-6115.6,0.00019452,2]
[421105716,1777050650097,-722.82,0.00019452,2]
[421105717,1777050650106,-2707.91,0.00019452,2]
[421105718,1777050650115,-2694.68,0.00019452,2]
[421105719,1777050650124,-2892.85,0.00019452,2]
[421105720,1777050650133,-958.03,0.00019452,2]
[421105721,1777050650142,-500.0,0.00019452,2]
[421105722,1777050650152,-925.89,0.00019452,2]
[421105723,1777050650161,-500.0,0.00019452,2]
[421105724,1777050650170,-1588.46,0.00019452,2]
[421105725,1777050650179,-500.0,0.00019452,2]
[421105726,1777050650189,-500.0,0.00019452,2]
[421105727,1777050650198,-500.0,0.00019452,2]
[421105728,1777050650208,-500.0,0.00019452,2]
[421105729,1777050650217,-5621.63,0.00019452,2]
[421105730,1777050650228,-500.0,0.00019452,2]
[421105731,1777050650238,-500.0,0.00019452,2]
[421105732,1777050650247,-500.0,0.00019452,2]
[421105733,1777050650256,-2229.05,0.00019452,2]
[421105734,1777050650267,-561.98,0.00019452,2]
[421105735,1777050650276,-5283.32,0.00019452,2]
[421105736,1777050650285,-500.0,0.00019452,2]
[421105737,1777050650294,-5666.25,0.00019452,2]
[421105738,1777050650303,-2037.12,0.00019452,2]
[421105739,1777050650313,-500.0,0.00019452,2]
[421105740,1777050650322,-500.0,0.00019452,2]
[421105741,1777050650331,-1755.88,0.00019452,2]
[421105742,1777050650341,-4527.83,0.00019452,2]
[421105743,1777050650350,-500.0,0.00019452,2]
[421105744,1777050650359,-1141.08,0.00019452,2]
[421105745,1777050650369,-1906.73,0.00019452,2]
[421105746,1777050650379,-500.0,0.00019452,2]
[421105747,1777050650388,-500.0,0.00019452,2]
[421105748,1777050650399,-837.54,0.00019452,2]
[421105749,1777050650408,-500.0,0.00019452,2]
[421105750,1777050650417,-998.01,0.00019452,2]
[421105751,1777050650427,-11486.98,0.00019452,2]
[421105752,1777050650437,-500.0,0.00019452,2]
[421105753,1777050650447,-35129.88,0.00019452,2]
[421105754,1777050650456,-500.0,0.00019452,2]
[421105755,1777050650466,-1323.34,0.00019452,2]
[421105756,1777050650475,-3208.85,0.00019452,2]
[421105757,1777050650484,-1920.51,0.00019452,2]
[421105758,1777050650494,-2511.72,0.00019452,2]
[421105759,1777050650503,-500.0,0.00019452,2]
[421105760,1777050650512,-5865.92,0.00019452,2]
[421105761,1777050650521,-686.32,0.00019452,2]
[421105762,1777050650532,-4868.64,0.00019452,2]
[421105763,1777050650542,-12000.03,0.00019452,2]
[421105764,1777050650551,-590.9,0.00019452,2]
[421105765,1777050650560,-2507.45,0.00019452,2]
[421105766,1777050650569,-866.2,0.00019452,2]
[421105767,1777050650579,-287.26860083,0.00019452,2]
[421105768,1777050650588,-500.0,0.00019452,2]
[421105769,1777050650598,-500.0,0.00019452,2]
[421105770,1777050650608,-13307.67,0.00019452,2]
[421105771,1777050650617,-1756.3547216,0.0001953,2]
[421105772,1777050650627,-185.0,0.00019581,2]
[421105773,1777050650636,-442.0,0.00019581,2]
[421105774,1777050650646,-3378.50105799,0.000196,2]
[421105775,1777050650656,-4361.07047836,0.00019626,2]
[421105776,1777050650666,-743.2,0.00019676,2]
[421105777,1777050650675,-4217.98,0.00019726,2]
[421105778,1777050650685,-152.49,0.00019726,2]
[421105779,1777050650694,-152.49,0.00019726,2]
[421105780,1777050650704,-152.49,0.00019726,2]
[421105781,1777050650714,-152.49,0.00019726,2]
[421105782,1777050650724,-152.49,0.00019726,2]
[421105783,1777050650734,-1418.5818,0.00019726,2]
[421105784,1777050650743,-500.0,0.00019726,2]
[421105785,1777050650753,-500.0,0.00019726,2]
[421105786,1777050650764,-1099.12,0.00019726,2]
[421105787,1777050650773,-500.0,0.00019726,2]
[421105788,1777050650784,-1263.72,0.00019726,2]
[421105789,1777050650793,-888.35,0.00019726,2]
[421105790,1777050650803,-805.61,0.00019726,2]
[421105791,1777050650813,-1071.22,0.00019726,2]
[421105792,1777050650833,-1256.96,0.00019726,2]
[421105793,1777050650845,-601.95,0.00019726,2]
[421105794,1777050650855,-500.0,0.00019726,2]
[421105795,1777050650865,-2538.85,0.00019726,2]
[421105796,1777050650876,-500.0,0.00019726,2]
[421105797,1777050650886,-1252.18,0.00019726,2]
[421105798,1777050650897,-500.0,0.00019726,2]
[421105799,1777050650907,-1443.62,0.00019726,2]
[421105800,1777050650918,-500.0,0.00019726,2]
[421105801,1777050650928,-500.0,0.00019726,2]
[421105802,1777050650940,-500.0,0.00019726,2]
[421105803,1777050650951,-522.83,0.00019726,2]
[421105804,1777050650964,-500.0,0.00019726,2]
[421105805,1777050650976,-500.0,0.00019726,2]
[421105806,1777050650989,-500.0,0.00019726,2]
[421105807,1777050651000,-500.0,0.00019726,2]
[421105808,1777050651013,-500.0,0.00019726,2]
[421105809,1777050651024,-551.62,0.00019726,2]
[421105810,1777050651036,-500.0,0.00019726,2]
[421105811,1777050651047,-567.67369379,0.00019726,2]
[421105812,1777050651058,-843.62,0.00019726,2]
[421105813,1777050651068,-907.09,0.00019726,2]
[421105814,1777050651079,-782.33,0.00019726,2]
[421105815,1777050651089,-1910.61,0.00019726,2]
[421105816,1777050651099,-1105.73,0.00019726,2]
[421105817,1777050651110,-607.95402719,0.00019726,2]
[421105818,1777050651120,-500.0,0.00019726,2]
[421105819,1777050651131,-316.29537729,0.00019726,2]